Cogmind - Beta 14 @@@ ROGUE MODE // 2024.11.17 @ 12:03:01 Player: Hinzy Result: Self-destructed Performance ------------- Evolutions (2) 1000 Regions Visited (3) 600 Robots Destroyed (42) 210 Value Destroyed (937) 937 Prototype IDs (5) 100 Alien Tech Used (0) 0 Bonus (66) 66 TOTAL SCORE: 2913 Bonus ------- High Alert Combat Kills 66 Cogmind --------- Core Integrity 189/550 Matter 285/300 Energy 100/100 System Corruption 0% Temperature Cool (0) Movement Core (400) Ox7 Location -8/Materials Parts ------- > --- POWER (1) -------- (None) > --- PROPULSION (4) --- (None) > --- UTILITY (4) ------ Heat Sink Large Storage Unit Improved Targeting Computer Trap Extractor (0/4) > --- WEAPON (2) ------- (None) > --- INVENTORY (15) --- Ion Engine Armored Wheel Large Matter Pod (0) Seismic Detector Recoil Stabilizer Medium Laser Beam Rifle Datajack Heavy Hammer Peak State ------------ > --- POWER ------------ Light Nuclear Core > --- PROPULSION ------- Improved Aluminum Leg Improved Aluminum Leg Improved Aluminum Leg Improved Aluminum Leg > --- UTILITY ---------- Large Storage Unit Improved Sensor Array Improved Targeting Computer Light Armor Plating > --- WEAPON ----------- Heavy Assault Rifle Improved Assault Rifle > --- INVENTORY -------- Ion Engine Armored Wheel Heat Sink Large Matter Pod Recoil Stabilizer Trap Extractor Medium Laser Beam Rifle Beam Rifle Grenade Launcher Datajack Heavy Hammer [Rating: 24] Favorites ----------- Power Light Ion Engine Engine Light Ion Engine Power Core Light Nuclear Core Propulsion Improved Aluminum Leg Treads Light Treads Leg Improved Aluminum Leg Utility Large Storage Unit Device Seismic Detector Storage Large Storage Unit Processor Improved Targeting Computer Protection Light Armor Plating Weapon Medium Laser Energy Gun Medium Laser Ballistic Gun Assault Rifle Launcher Grenade Launcher Impact Weapon Heavy Hammer Build | -11 -10 -9 -8 ------- Run | Yrd Mat Mat Mat Slots Evolved 4 | . . 2 2 Power . | . . . . Propulsion 2 | . . 2 . Utility 2 | . . . 2 Weapon . | . . . . Parts Attached 36 | 1 5 11 19 Power 5 | . . 1 4 Engine 2 | . . 1 1 Core 3 | . . . 3 Reactor . | . . . . Propulsion 7 | . 4 2 1 Treads 2 | . 2 . . Leg 5 | . 2 2 1 Wheel . | . . . . Hover . | . . . . Flight . | . . . . Utility 10 | 1 . 2 7 Device 7 | 1 . 1 5 Storage 1 | . . 1 . Processor 1 | . . . 1 Hackware . | . . . . Protection 1 | . . . 1 Artifact . | . . . . Weapon 14 | . 1 6 7 Energy Gun 2 | . . 1 1 Energy Cannon . | . . . . Ballistic Gun 6 | . 1 1 4 Ballistic Cannon . | . . . . Launcher 5 | . . 3 2 Special Weapon . | . . . . Impact Weapon 1 | . . 1 . Slashing Weapon . | . . . . Piercing Weapon . | . . . . Special Melee Weapon . | . . . . Unidentified Prototypes 1 | . . . 1 Parts Lost 15 | . . 1 14 Power 4 | . . . 4 Propulsion 5 | . . . 5 Utility 1 | . . . 1 Weapon 5 | . . 1 4 Highest Loss Streak 12 | . . 1 12 To Critical Strikes . | . . . . Average Slot Usage (%) 98 | . 100 100 91 Engine 10 | . 14 11 3 Treads 1 | . 6 . . Leg 35 | . 21 44 30 Device 12 | . 14 11 13 Storage 11 | . 14 11 9 Processor 2 | . . . 9 Protection 1 | . . . 4 Energy Gun 11 | . 27 7 3 Ballistic Gun 4 | . . 4 10 Launcher 1 | . . 3 . Impact Weapon 4 | . . 7 2 Peak Build Rating 24 | 9 12 16 24 Average Rating 13 | 6 9 14 20 On Entrance 10 | 6 9 12 16 Naked Turns . | . . . . Heaviest Build 35 | 13 13 32 35 Greatest Support 52 | 20 40 52 52 Greatest Overweight (x) 10 | . . . 10 Average Overweight (x) . | . . . . Largest Inventory Capacity 15 | 8 8 15 15 Average Capacity 11 | 8 8 13 15 Most Carried 13 | 7 8 11 13 Average Carried 7 | 5 7 7 11 Final Capacity 15 | 8 8 15 15 Final Carried 11 | 5 8 11 9 Class Distribution -------------------- 100% | Mutant Dominant Class ---------------- Mutant | -10/Materials Mutant | -9/Materials Mutant | -8/Materials Resources | -11 -10 -9 -8 ----------- Run | Yrd Mat Mat Mat Matter Collected 916 | 210 70 308 328 Remotely . | . . . . Salvage Created 1188 | 273 134 377 404 Parts 56 | 14 10 11 21 Haulers Intercepted 1 | . 1 . . Recyclers Shooed 1 | . . . 1 Parts Field Recycled . | . . . . Retrieved Matter . | . . . . Parts Self-Destructed . | . . . . Prevented . | . . . . Kills | -11 -10 -9 -8 ------- Run | Yrd Mat Mat Mat Combat Hostiles Destroyed 20 | . 3 9 8 Guns 11 | . 3 2 6 AOE 9 | . . 7 2 Classes Destroyed 12 | 3 3 5 1 Worker 3 | 2 . 1 . Builder 3 | . . 3 . Tunneler 7 | 7 . . . Hauler 1 | . 1 . . Recycler 3 | 1 . 1 1 Mechanic 1 | . . 1 . Operator 1 | . . 1 . Watcher 3 | . 2 1 . Swarmer 6 | . 3 3 . Grunt 7 | . . 2 5 Duelist 1 | . . . 1 Sentry 6 | . . 4 2 Best Kill Streak 6 | 5 5 6 3 Combat Bots Only 4 | . 3 4 3 Max Kills in Single Turn 2 | 2 1 2 2 Gunslinging . | . . . . Exploded 2 | . . 2 2 Melee . | . . . . Uniques/NPCs Destroyed . | . . . . Combat | -11 -10 -9 -8 -------- Run | Yrd Mat Mat Mat Hostile Shots Fired 187 | . 16 48 123 Missed 46 | . 5 13 28 Damage Taken 2100 | . 93 541 1466 Core 465 | . 14 90 361 Absorbed by Shields . | . . . . Regen/Repaired (Parts) 57 | . . 57 . Core Remaining (%) 90 | 100 94 77 . Volleys Fired 106 | 20 15 36 35 Largest 2 | 2 2 1 2 Hottest 100 | 100 100 56 79 Shots Fired 167 | 40 30 36 61 Gun 140 | 40 30 15 55 Cannon . | . . . . Launcher 27 | . . 21 6 Special . | . . . . Kinetic 42 | . . . 42 Thermal 98 | 40 30 15 13 Explosive 27 | . . 21 6 Electromagnetic . | . . . . Robot Hit Streak 19 | 6 4 14 19 Robot Miss Streak 2 | 2 2 1 2 Penetration Max . | . . . . Secondary Targets 2 | . . . 2 Max Gunslinging Chain 1 | . . . 1 Shots Hit Robots 120 | 21 17 37 45 Core Hits 63 | 11 7 23 22 Critical Kills . | . . . . Critical Parts Destroyed 2 | . . 1 1 Critical Strikes 8 | 4 . 2 2 Burn 6 | 4 . 1 1 Destroy 1 | . . . 1 Smash 1 | . . 1 . Melee Attacks 25 | . . 20 5 Impact 25 | . . 20 5 Slashing . | . . . . Piercing . | . . . . Sneak Attacks 5 | . . 5 . Combat Hostiles . | . . . . Follow-up Attacks . | . . . . Damage Inflicted 3337 | 279 215 1966 877 Guns 1383 | 279 215 204 685 Cannons . | . . . . Explosions 1487 | . . 1295 192 Melee 467 | . . 467 . Ramming . | . . . . Kinetic 540 | . . . 540 Thermal 1149 | 279 215 510 145 Explosive 1181 | . . 989 192 Electromagnetic . | . . . . Impact 467 | . . 467 . Slashing . | . . . . Piercing . | . . . . Highest Corruption . | . . . . Average Corruption . | . . . . Corruption Purged . | . . . . Corruption Blocked . | . . . . Overload Shots . | . . . . Overflow Damage 292 | . . 292 . Projectiles . | . . . . Explosions 58 | . . 58 . Melee 234 | . . 234 . Knockbacks 4 | . . 4 . Impact 4 | . . 4 . Kinetic . | . . . . Secondary . | . . . . Self-Inflicted Damage 116 | . . 116 . Shots 4 | . . 4 . Rammed . | . . . . Targets Rammed . | . . . . Kicked . | . . . . Crushed . | . . . . Highest Temperature 234 | 234 234 154 37 Average Temperature 71 | 92 83 52 12 Received Heat Transfer 1029 | . . 192 837 Effects 3 | 2 1 . . Energy Bleed 1 | . 1 . . Interference 2 | 2 . . . Siege Activations . | . . . . Robots Corrupted 5 | . . 5 . Combat Hostiles . | . . . . Parts Fried 6 | . . 6 . Impact Corruptions 10 | . . 10 . Robots Melted . | . . . . Combat Hostiles . | . . . . Parts Melted 10 | 3 5 2 . Heat Transferred 2925 | 1110 629 742 444 Parts Sabotaged . | . . . . Parts Stolen . | . . . . Parts Stripped . | . . . . Power Chain Reactions . | . . . . Alert | -11 -10 -9 -8 ------- Run | Yrd Mat Mat Mat Peak Influence 492 | 50 220 492 463 Initial 207 | . 32 92 207 Average 185 | 21 113 224 322 Maximum Alert Level 2 | . 1 2 2 Low Security (%) 54 | 100 64 56 . Level 1 31 | . 35 26 68 Level 2 13 | . . 17 31 Level 3 . | . . . . Level 4 . | . . . . Level 5 . | . . . . High Security . | . . . . Max Security . | . . . . Squads Dispatched 3 | . . 1 2 Investigation . | . . . . Extermination . | . . . . Reinforcement 3 | . . 1 2 Assault . | . . . . Garrison . | . . . . Intercept . | . . . . Searches Triggered . | . . . . Construction Impeded . | . . . . Haulers Reinforced . | . . . . Active Scanning Responses . | . . . . Cargo Convoy Interrupts . | . . . . Stealth | -11 -10 -9 -8 --------- Run | Yrd Mat Mat Mat Distress Signals 7 | . 2 2 3 Communications Jammed . | . . . . Distress Signals . | . . . . Times Spotted 42 | . 6 16 20 Peak Tracking Total 8 | . 3 4 8 Tactical Retreats 6 | . 2 3 1 Traps | -11 -10 -9 -8 ------- Run | Yrd Mat Mat Mat Traps Triggered . | . . . . Indirectly . | . . . . Trap Hack Attempts . | . . . . Triggered . | . . . . Disarmed . | . . . . Reprogrammed . | . . . . Reused . | . . . . Traps Extracted . | . . . . Installed . | . . . . Triggered . | . . . . Machines | -11 -10 -9 -8 ---------- Run | Yrd Mat Mat Mat Machines Disabled 8 | . . 6 2 Max in Single Turn 5 | . . 5 1 Machines Repaired . | . . . . Machines Dismantled . | . . . . Machines Sabotaged . | . . . . Overloaded Fab Kills . | . . . . Hacking | -11 -10 -9 -8 --------- Run | Yrd Mat Mat Mat Machines Accessed 12 | . 1 8 3 Terminals 10 | . 1 6 3 Fabricators . | . . . . Repair Stations 1 | . . 1 . Recycling Units . | . . . . Scanalyzers 1 | . . 1 . Garrison Access . | . . . . Total Hacks 44 | . 2 31 11 Successful 28 | . 1 21 6 Failed 16 | . 1 10 5 Catastrophic 2 | . 1 1 . Database Lockouts . | . . . . Manual 26 | . . 19 7 Terminals 40 | . 2 27 11 Fabricators . | . . . . Repair Stations 2 | . . 2 . Recycling Units . | . . . . Scanalyzers 2 | . . 2 . Garrison Access . | . . . . Terminal Hacks 15 | . 1 10 4 Prototype ID Bank 2 | . . 2 . Level Access Points 1 | . . 1 . Branch Access Points 3 | . 1 1 1 Terminal Index 2 | . . 1 1 Locate Traps 1 | . . . 1 Transport Status 1 | . . 1 . Hauler Manifests 2 | . . 2 . Zone Layout 3 | . . 2 1 Fabricator Hacks . | . . . . Repair Station Hacks 2 | . . 2 . Scan Component 1 | . . 1 . Repair 1 | . . 1 . Recycling Unit Hacks . | . . . . Scanalyzer 2 | . . 2 . Insert Component 1 | . . 1 . Analyze 1 | . . 1 . Garrison Access Hacks . | . . . . Unauthorized Hacks 9 | . . 7 2 Terminals 9 | . . 7 2 Botnet 4 | . . 2 2 Operators 1 | . . 1 . Skim 4 | . . 4 . Fabricators . | . . . . Repair Stations . | . . . . Recycling Units . | . . . . Scanalyzers . | . . . . Garrison Access . | . . . . Data Cores Recovered . | . . . . Used . | . . . . Hacking Detections 9 | . 1 5 3 Full Trace Events 1 | . 1 . . Feedback Events . | . . . . Feedback Blocked . | . . . . Robot Schematics Acquired . | . . . . Robots Built . | . . . . Authchips . | . . . . Time . | . . . . Total Robot Build Rating . | . . . . Part Schematics Acquired 1 | . . 1 . Parts Built . | . . . . Authchips . | . . . . Time . | . . . . Total Part Build Rating . | . . . . Parts Repaired 1 | . . 1 . Time 26 | . . 26 . Parts Recycled . | . . . . Recycled Matter . | . . . . Retrieved Matter . | . . . . Retrieved Components . | . . . . Parts Scanalyzed 1 | . . 1 . Part Schematics Acquired 1 | . . 1 . Parts Damaged . | . . . . Bothacking | -11 -10 -9 -8 ------------ Run | Yrd Mat Mat Mat Used RIF Installer . | . . . . Robots Hacked . | . . . . Non-combat . | . . . . Combat . | . . . . Robot Hacks Applied . | . . . . Relay Couplers Released . | . . . . Fabnet Peak Effective % . | . . . . Robots Rewired . | . . . . Allies Hacked . | . . . . Hacks Repelled . | . . . . Allies | -11 -10 -9 -8 -------- Run | Yrd Mat Mat Mat Total Allies . | . . . . Largest Group . | . . . . Highest-Rated Group . | . . . . Highest-Rated Ally . | . . . . Total Orders . | . . . . Ally Attacks . | . . . . Total Damage . | . . . . Kills . | . . . . Allies Corrupted . | . . . . Allies Melted . | . . . . Intel | -11 -10 -9 -8 ------- Run | Yrd Mat Mat Mat Robot Analysis Total . | . . . . Derelict Logs Recovered . | . . . . Drone Launches . | . . . . Drone Recoveries . | . . . . Exploration | -11 -10 -9 -8 ------------- Run | Yrd Mat Mat Mat Turns Passed 1655 | 286 340 707 322 Spaces Moved 846 | 93 212 422 119 Core 2 | . . . 2 Treads 21 | . 21 . . Legs 823 | 93 191 422 117 Wheels . | . . . . Hover . | . . . . Flight . | . . . . Fastest Speed 120 | 120 120 120 120 Average Speed 122 | 120 123 120 131 Slowest Speed 550 | 120 160 120 550 Overloaded Moves . | . . . . Propulsion Burnouts . | . . . . Robots Hopped . | . . . . Cave-ins Triggered . | . . . . Exploration Rate (%) 24 | 6 30 48 15 Regions Visited 3 Branch Regions . Pre-discovered Areas . | . . . . Known Exits Taken 1 | . . 1 . Unknown Exits Taken 2 | 1 1 . . Scrap Searched . | . . . . Spaces Dug 14 | . . 9 5 Terrain Destroyed 145 | . . 122 23 Melee 14 | . . 9 5 Projectile . | . . . . AOE 131 | . . 113 18 Terrain Rammed . | . . . . Walls Destroyed . | . . . . Machines Disabled . | . . . . Actions | -11 -10 -9 -8 --------- Run | Yrd Mat Mat Mat Total 1252 | 229 261 551 211 Wait 196 | 109 18 44 25 Move 843 | 92 211 421 119 Hop . | . . . . Pick Up 23 | 3 6 12 2 Fast Attach 14 | 1 3 1 9 Attach 9 | . . 3 6 Detach 1 | . . . 1 Swap 13 | . 2 7 4 Drop 22 | 4 6 7 5 Fire 106 | 20 15 36 35 Melee 25 | . . 20 5 Ram . | . . . . Kick . | . . . . Crush . | . . . . Escape Stasis . | . . . . Rewire . | . . . . Trap . | . . . . Miscellaneous . | . . . . Route ------- -11/Scrapyard -10/Materials (discovered 3 exits: *Mat / Min x2) -9/Materials (discovered 4 exits: *Mat x3 / Min) -8/Materials (discovered 2 exits: Sto x2) History --------- Turn | Location | Event 9 | -11/Scrapyard | Discovered new exit (range 2) 287 | -11/Scrapyard | Entered Materials 306 | -10/Materials | Build established: Mutant 404 | -10/Materials | Identified exit to Mines 588 | -10/Materials | Discovered new exit (range 14) 627 | -10/Materials | Entered another Materials area 627 | -9/Materials | Evolved 2 slots: Propulsion x2 681 | -9/Materials | Identified exit to Materials 784 | -9/Materials | Identified exit to Mines 1053 | -9/Materials | Repaired Grenade Launcher 1334 | -9/Materials | Entered another Materials area 1334 | -8/Materials | Evolved 2 slots: Utility x2 1531 | -8/Materials | Identified exit to Storage 1645 | -8/Materials | Core integrity fell below 50% 1656 | -8/Materials | Self-destructed Last Messages --------------- 01635_ R-06 Scavenger collects Sml. Storage Unit. 01637_ Critical hit (Burn: +37). 01639_ Beam Rifle destroyed. 01640_ R-06 Scavenger collects Lgt. Ion Engine. 01643_ Imp. Heat Sink destroyed. 01644_ Acquired Imp. Ion Engine. 01644_ Critical hit (Burn: +37). 01644_ R-06 Scavenger collects Imp. Aluminum Leg. 01646_ K-01 Serf destroyed. 01646_ Grenade Launcher destroyed. 01647_ Acquired 24 matter. 01647_ R-06 Scavenger collects Lgt. Ion Engine. 01649_ Critical hit (Burn: +37). 01653_ Hvy. Assault Rifle destroyed. 01654_ K-01 Serf destroyed. 01655_ Acquired 17 matter. 01655_ Imp. Ion Engine destroyed. 01655_ Critical hit (Burn: +37). Map ----- +----------------------------------------------------+ | ???????????????????????????????# # " #????? | | ???????????????????????????????# # #????? | | ???????????????????????????????# # #????? | | ?????????????????????########### ###########?? | | ?????????????????????# # # #?? | | ?????????????????????# # # #?? | | ?????????????????????# ! + + """ """ #?? | | ?????????????????????# """ """ # # """ """ #?? | | ?????????????????????# """ """ # # """ """ #?? | | ?????????????????????# "" " !# # #?? | | ?????????????????????# # # #?? | | ????????????????????## ![!# # #?? | | ????????????????????############ ###?#######?? | | ????????????????????############ #?# #???????? | | ???????????????????????## #?# #???????? | | ????????????????????????#! ^ ^ #???????????? | | ??????????????????###???# """ #???????????? | | ?????????????????? ??# ^ "T" ##??????????? | | ???????????????# """ ??# "#??????????? | | ???????????????#! """ ?# u T#??????????? | | ???????????????# """ ?+ "#??????????? | | ???????????????# # ^ ###?????????? | | ???????????????# !! # ^ # #?????????? | | ???????????????# ! # # #?????????? | | ???????????????# !! # "" # ###???????? | | ??????????????# #@! """ #! ! ??????? | | ??????????????######### #g * "" [# "??????? | | ????????????#############kg =%# "??????? | | ???????? "%" %%ggg # ] "??????? | | ???????? " Yu + ?????? | | ???????? = u #### # "??????? | | ?????????#####+### %########???## # !! ???????? | | ?????????????????# ????????????? #???????????? | | ?????????????????# ?????????????? ????????????? | | ?????????????????# ????????????????????????????? | | ?????????????????#?????????????????????????????? | | ???????????????????????????????????????????????? | | ???????????????????????????????????????????????? | | ???????????????????????????????????????????????? | | ???????????????????????????????????????????????? | | ???????????????????????????????????????????????? | | ???????????????????????????????????????????????? | | ???????????????????????????????????????????????? | | ???????????????????>???????????????????????????? | | ???????????????????????????????????????????????? | | ???????????????????????????????????????????????? | | ???????????????????????????????????????????????? | | ???????????????????????????????????????????????? | | ???????????????????????????????????????????????? | | ???????????????????????????????????????????????? | +----------------------------------------------------+ Best States ------------- Heat Dissipation 45 Energy Generation 14 Energy Capacity 265 Matter Stores 300 Matter Capacity 300 Sight Range 16 Robot Scan Range 15 Terrain Scan Range 16 Terrain Scan Density 10 Armor Coverage 150 Evasion (%) 55 Targeting Accuracy 6 Recoil Reduction 2 Trap Extractor Capacity 4 Item Schematics ----------------- Arm. Wheel | -9/Materials | Scanalyzed Robot Schematics ------------------ None Fabricated ------------ Nothing Alien Tech Used ----------------- None Achievements -------------- None Challenges ------------ None Game ------ Seed AutogunTransdimensionalCore Manual? 0 Play Time 00:20:54 Cumulative 69.1 hours Start 2024.11.17 @ 11:42:07 End 2024.11.17 @ 12:03:01 Sessions 1 Manual Loads 0 Difficulty Rogue Special Mode None Game No. 47 Rogue 47 Adventurer 0 Explorer 0 Win Type - Total 0 Types 0/0/0/0/0/0/0/0/0 Lore% 41 Gallery% 43 Achievement% 33 Wizard Run 0 Options --------- Layout 2 ASCII 0 Keyboard 0 Movement Mouse Keybinds 0 Fullscreen 1 Font 24/Smallcaps Map View 50x44 Zoom Use 0% Tactical HUD 1 Map Filters NONE Filters NONE Steam 1 RUN: fc98517e-0a34-4579-a47f-bc292a5fb0d5